[Event "Live Chess"]
[Site "Chess.com"]
[Date "2024.06.02"]
[Round "-"]
[White "PETROMICH1967"]
[Black "MagnersCarlsberg2870"]
[Result "0-1"]
[WhiteElo "1352"]
[BlackElo "1768"]
[TimeControl "300"]
[EndTime "5:17:35 PDT"]
[Termination "MagnersCarlsberg2870 won by resignation"]

1. e4 {[%clk 0:04:54.5]} 1... e5 {[%clk 0:04:58.6]} 2. Nf3 {[%clk 0:04:51.5]}
2... Nf6 {[%clk 0:04:56.6]} 3. Nxe5 {[%clk 0:04:48]} 3... Nc6 {[%clk 0:04:54.5]}
4. d4 {[%clk 0:04:43.4]} 4... Nxe5 {[%clk 0:04:51.3]} 5. dxe5 {[%clk 0:04:41.1]}
5... Nxe4 {[%clk 0:04:50.6]} 6. Bc4 {[%clk 0:04:37]} 6... Bc5 {[%clk 0:04:42.1]}
7. Qd5 {[%clk 0:04:33]} 7... Bxf2+ {[%clk 0:04:32.7]} 8. Ke2 {[%clk 0:04:30.5]}
8... Qh4 {[%clk 0:04:25.8]} 9. Qxf7+ {[%clk 0:04:21.9]} 9... Kd8 {[%clk
0:04:24.8]} 10. Rf1 {[%clk 0:04:04.8]} 10... Qg4+ {[%clk 0:04:23]} 11. Qf3
{[%clk 0:03:59.2]} 11... d5 {[%clk 0:04:12]} 12. exd6 {[%clk 0:03:47]} 12...
Nxd6 {[%clk 0:04:07.2]} 13. Qxg4 {[%clk 0:03:10.2]} 13... Bxg4+ {[%clk 0:04:05]}
14. Kxf2 {[%clk 0:03:09.4]} 14... Nxc4 {[%clk 0:04:04.2]} 15. Bg5+ {[%clk
0:02:59.5]} 15... Kd7 {[%clk 0:04:00.2]} 16. b3 {[%clk 0:02:55.5]} 16... Rhf8+
{[%clk 0:03:57.7]} 17. Kg1 {[%clk 0:02:52]} 17... Rxf1+ {[%clk 0:03:55.5]} 18.
Kxf1 {[%clk 0:02:48.4]} 18... Rf8+ {[%clk 0:03:54.1]} 19. Kg1 {[%clk 0:02:38.3]}
19... Nd6 {[%clk 0:03:45.5]} 20. h3 {[%clk 0:02:36]} 20... Bf5 {[%clk
0:03:37.7]} 21. c4 {[%clk 0:02:29.4]} 21... Ne4 {[%clk 0:03:34.3]} 22. Be3
{[%clk 0:02:23.9]} 22... Re8 {[%clk 0:03:19.4]} 23. Na3 {[%clk 0:02:17.3]} 23...
Nc3 {[%clk 0:03:14]} 24. Bd4 {[%clk 0:02:11.7]} 24... Ne2+ {[%clk 0:03:12.1]}
25. Kf2 {[%clk 0:02:04.8]} 25... Nxd4 {[%clk 0:03:10.9]} 26. Rd1 {[%clk
0:02:03.5]} 26... Re4 {[%clk 0:03:09]} 27. Nb5 {[%clk 0:01:56.8]} 27... c5
{[%clk 0:03:07.1]} 28. Nxa7 {[%clk 0:01:53.5]} 28... Ke7 {[%clk 0:03:05.3]} 29.
g4 {[%clk 0:01:50.7]} 29... Bd7 {[%clk 0:02:52.9]} 30. Rd2 {[%clk 0:01:46.1]}
30... Rf4+ {[%clk 0:02:47.1]} 31. Kg3 {[%clk 0:01:40.9]} 31... Rf3+ {[%clk
0:02:44.2]} 32. Kh4 {[%clk 0:01:37.1]} 32... h6 {[%clk 0:02:34.7]} 33. Nb5
{[%clk 0:01:27.6]} 33... Be8 {[%clk 0:02:28.8]} 34. g5 {[%clk 0:01:10.2]} 34...
hxg5+ {[%clk 0:02:21.5]} 35. Kxg5 {[%clk 0:01:08.5]} 35... Bxb5 {[%clk 0:02:15]}
36. cxb5 {[%clk 0:01:05.1]} 36... Nxb5 {[%clk 0:02:14.1]} 37. h4 {[%clk
0:01:03.6]} 37... Nd4 {[%clk 0:02:10.5]} 38. h5 {[%clk 0:00:58.5]} 38... Rg3+
{[%clk 0:02:08.4]} 39. Kh4 {[%clk 0:00:56]} 39... Nf3+ {[%clk 0:02:05.5]} 40.
Kxg3 {[%clk 0:00:52.8]} 40... Nxd2 {[%clk 0:02:04.4]} 41. Kf4 {[%clk 0:00:51.5]}
41... Kf6 {[%clk 0:02:01.1]} 42. Ke3 {[%clk 0:00:48.9]} 42... Nb1 {[%clk
0:01:54.5]} 43. Kd3 {[%clk 0:00:46.8]} 43... Kg5 {[%clk 0:01:52.2]} 44. Kc2
{[%clk 0:00:46.3]} 44... Na3+ {[%clk 0:01:50.8]} 45. Kc3 {[%clk 0:00:43.1]}
45... Kxh5 {[%clk 0:01:49.3]} 46. b4 {[%clk 0:00:42.5]} 46... cxb4+ {[%clk
0:01:46.3]} 47. Kxb4 {[%clk 0:00:40.9]} 47... Nc2+ {[%clk 0:01:45.3]} 48. Kc3
{[%clk 0:00:38.7]} 48... Na3 {[%clk 0:01:43.2]} 49. Kb4 {[%clk 0:00:37]} 49...
Nb1 {[%clk 0:01:40.6]} 50. Kb5 {[%clk 0:00:32.7]} 50... g5 {[%clk 0:01:39.5]}
51. Kb6 {[%clk 0:00:32]} 51... g4 {[%clk 0:01:37.4]} 52. a4 {[%clk 0:00:29.3]}
52... g3 {[%clk 0:01:35.3]} 53. Kxb7 {[%clk 0:00:27.9]} 53... g2 {[%clk
0:01:34]} 54. a5 {[%clk 0:00:27.3]} 54... Nc3 {[%clk 0:01:31.2]} 55. a6 {[%clk
0:00:26.5]} 55... Nb5 {[%clk 0:01:29.8]} 56. Kb6 {[%clk 0:00:22.8]} 56... g1=Q+
{[%clk 0:01:28.2]} 57. Kxb5 {[%clk 0:00:21.2]} 57... Qa7 {[%clk 0:01:26.7]} 58.
Ka5 {[%clk 0:00:18.7]} 58... Kg5 {[%clk 0:01:25.4]} 0-1

[Event "Live Chess"]
[Site "Chess.com"]
[Date "2024.06.02"]
[Round "-"]
[White "Dhaydon19"]
[Black "TheRedDrag"]
[Result "1-0"]
[WhiteElo "2640"]
[BlackElo "2172"]
[TimeControl "300"]
[EndTime "5:17:36 PDT"]
[Termination "Dhaydon19 won by resignation"]

1. d3 {[%clk 0:04:58.2]} 1... Nf6 {[%clk 0:04:58.4]} 2. Nf3 {[%clk 0:04:57.9]}
2... g6 {[%clk 0:04:57.8]} 3. g3 {[%clk 0:04:57.6]} 3... Bg7 {[%clk 0:04:57.4]}
4. Bg2 {[%clk 0:04:57.3]} 4... O-O {[%clk 0:04:56.8]} 5. O-O {[%clk 0:04:57]}
5... d6 {[%clk 0:04:56.3]} 6. c4 {[%clk 0:04:42.5]} 6... Nc6 {[%clk 0:04:54.4]}
7. Nc3 {[%clk 0:04:41.5]} 7... e5 {[%clk 0:04:53.2]} 8. a3 {[%clk 0:04:39.5]}
8... a6 {[%clk 0:04:51.3]} 9. Rb1 {[%clk 0:04:38.7]} 9... Nd7 {[%clk 0:04:49.9]}
10. b4 {[%clk 0:04:36.7]} 10... f5 {[%clk 0:04:49.1]} 11. Bd2 {[%clk 0:04:35.1]}
11... h6 {[%clk 0:04:43.3]} 12. Nd5 {[%clk 0:04:32.3]} 12... Nf6 {[%clk
0:04:38.2]} 13. Ne1 {[%clk 0:04:30.7]} 13... Be6 {[%clk 0:04:35.4]} 14. Nxf6+
{[%clk 0:04:26.6]} 14... Qxf6 {[%clk 0:04:30.5]} 15. Nc2 {[%clk 0:04:26]} 15...
f4 {[%clk 0:04:26.6]} 16. Bc3 {[%clk 0:04:22.1]} 16... g5 {[%clk 0:04:23.2]} 17.
b5 {[%clk 0:04:17.7]} 17... axb5 {[%clk 0:04:16.6]} 18. cxb5 {[%clk 0:04:16.6]}
18... Nd4 {[%clk 0:04:15.6]} 19. Bxb7 {[%clk 0:04:09.7]} 19... Rab8 {[%clk
0:04:11.9]} 20. Bg2 {[%clk 0:04:03.6]} 20... g4 {[%clk 0:03:58.9]} 21. Bxd4
{[%clk 0:03:58.1]} 21... exd4 {[%clk 0:03:57.4]} 22. a4 {[%clk 0:03:53.6]} 22...
f3 {[%clk 0:03:53.3]} 23. exf3 {[%clk 0:03:52.3]} 23... gxf3 {[%clk 0:03:52.6]}
24. Bh1 {[%clk 0:03:51.9]} 24... h5 {[%clk 0:03:43.6]} 25. Re1 {[%clk
0:03:50.8]} 25... Bf5 {[%clk 0:03:28.8]} 26. Bxf3 {[%clk 0:03:46]} 26... Bxd3
{[%clk 0:03:24]} 27. Bd5+ {[%clk 0:03:44.8]} 1-0

[Event "Live Chess"]
[Site "Chess.com"]
[Date "2024.06.02"]
[Round "-"]
[White "road2gm5000"]
[Black "elis06"]
[Result "0-1"]
[WhiteElo "1130"]
[BlackElo "2350"]
[TimeControl "300"]
[EndTime "5:17:51 PDT"]
[Termination "elis06 won by checkmate"]

1. e4 {[%clk 0:04:59.2]} 1... c6 {[%clk 0:04:58.9]} 2. d4 {[%clk 0:04:57.7]}
2... d5 {[%clk 0:04:58.1]} 3. exd5 {[%clk 0:04:56.3]} 3... cxd5 {[%clk 0:04:58]}
4. Bd3 {[%clk 0:04:55.1]} 4... Nc6 {[%clk 0:04:56.7]} 5. c3 {[%clk 0:04:54.6]}
5... Nf6 {[%clk 0:04:55.8]} 6. Bg5 {[%clk 0:04:54.3]} 6... Bg4 {[%clk
0:04:52.9]} 7. Nf3 {[%clk 0:04:53]} 7... e6 {[%clk 0:04:51.7]} 8. h3 {[%clk
0:04:51.8]} 8... Bh5 {[%clk 0:04:50.7]} 9. Nbd2 {[%clk 0:04:50.7]} 9... Bd6
{[%clk 0:04:49.6]} 10. Qc2 {[%clk 0:04:49.1]} 10... Qc7 {[%clk 0:04:48.3]} 11.
O-O {[%clk 0:04:46.3]} 11... h6 {[%clk 0:04:44.2]} 12. Bxf6 {[%clk 0:04:44.5]}
12... gxf6 {[%clk 0:04:42.9]} 13. Bh7 {[%clk 0:04:40.7]} 13... f5 {[%clk
0:04:39.5]} 14. Rfe1 {[%clk 0:04:37.5]} 14... Rxh7 {[%clk 0:04:36.2]} 15. Qxf5
{[%clk 0:04:34]} 15... Bg6 {[%clk 0:04:34.4]} 16. Qf6 {[%clk 0:04:21.3]} 16...
Be7 {[%clk 0:04:29.5]} 17. Rxe6 {[%clk 0:04:12.6]} 17... O-O-O {[%clk
0:04:17.7]} 18. Rxe7 {[%clk 0:03:53.2]} 18... Qxe7 {[%clk 0:04:15.3]} 19. Qf4
{[%clk 0:03:42.7]} 19... Qc7 {[%clk 0:04:11.3]} 20. Qg4+ {[%clk 0:03:39.2]}
20... Kb8 {[%clk 0:04:09.4]} 21. Nb3 {[%clk 0:03:34.7]} 21... h5 {[%clk
0:04:06.2]} 22. Qh4 {[%clk 0:03:27.6]} 22... Be4 {[%clk 0:04:04.1]} 23. Qf6
{[%clk 0:03:15.6]} 23... Bxf3 {[%clk 0:04:01.4]} 24. Qxf3 {[%clk 0:03:15.5]}
24... Rg7 {[%clk 0:03:59]} 25. Nc5 {[%clk 0:03:12.1]} 25... Rdg8 {[%clk
0:03:56]} 26. g3 {[%clk 0:03:04.5]} 26... Rxg3+ {[%clk 0:03:53.1]} 27. fxg3
{[%clk 0:03:03.2]} 27... Rxg3+ {[%clk 0:03:53]} 28. Qxg3 {[%clk 0:03:01.4]}
28... Qxg3+ {[%clk 0:03:52.9]} 29. Kf1 {[%clk 0:03:00.7]} 29... Qxh3+ {[%clk
0:03:51.9]} 30. Ke2 {[%clk 0:02:59.5]} 30... Qg2+ {[%clk 0:03:51]} 31. Kd3
{[%clk 0:02:58]} 31... Qf3+ {[%clk 0:03:49.3]} 32. Kc2 {[%clk 0:02:55.9]} 32...
Qe2+ {[%clk 0:03:47.9]} 33. Kb3 {[%clk 0:02:54.5]} 33... Na5+ {[%clk 0:03:46.6]}
34. Ka3 {[%clk 0:02:51.6]} 34... Nc4+ {[%clk 0:03:45.5]} 35. Kb3 {[%clk
0:02:50.4]} 35... Qxb2+ {[%clk 0:03:43.9]} 36. Ka4 {[%clk 0:02:49]} 36... b5#
{[%clk 0:03:43.3]} 0-1

[Event "Live Chess"]
[Site "Chess.com"]
[Date "2024.06.02"]
[Round "-"]
[White "missedJariChance"]
[Black "vincents82"]
[Result "0-1"]
[WhiteElo "1360"]
[BlackElo "1994"]
[TimeControl "300"]
[EndTime "5:18:01 PDT"]
[Termination "vincents82 won by resignation"]

1. b3 {[%clk 0:04:55.5]} 1... d5 {[%clk 0:04:58.5]} 2. Bb2 {[%clk 0:04:53.4]}
2... Nf6 {[%clk 0:04:57.4]} 3. Nf3 {[%clk 0:04:52.1]} 3... e6 {[%clk 0:04:56.5]}
4. e3 {[%clk 0:04:50.9]} 4... Be7 {[%clk 0:04:55.6]} 5. Be2 {[%clk 0:04:49.3]}
5... O-O {[%clk 0:04:54.2]} 6. O-O {[%clk 0:04:48.4]} 6... c5 {[%clk 0:04:53.2]}
7. c4 {[%clk 0:04:36.4]} 7... b6 {[%clk 0:04:51.7]} 8. cxd5 {[%clk 0:04:33.2]}
8... exd5 {[%clk 0:04:46.8]} 9. d3 {[%clk 0:04:31.5]} 9... Bb7 {[%clk 0:04:42]}
10. Nbd2 {[%clk 0:04:29.5]} 10... Nbd7 {[%clk 0:04:40.7]} 11. Rc1 {[%clk
0:04:25.3]} 11... Rc8 {[%clk 0:04:39.6]} 12. d4 {[%clk 0:04:08.9]} 12... Ne4
{[%clk 0:04:36.1]} 13. Nxe4 {[%clk 0:04:00.3]} 13... dxe4 {[%clk 0:04:34.8]} 14.
Nd2 {[%clk 0:03:58.2]} 14... Bd6 {[%clk 0:04:27.5]} 15. dxc5 {[%clk 0:03:51]}
15... Nxc5 {[%clk 0:04:25.7]} 16. Nc4 {[%clk 0:03:43.9]} 16... Bb8 {[%clk
0:04:21.9]} 17. h3 {[%clk 0:03:33.2]} 17... Rc7 {[%clk 0:04:19.7]} 18. Qxd8
{[%clk 0:03:13.2]} 18... Rxd8 {[%clk 0:04:18]} 19. Be5 {[%clk 0:03:08.9]} 19...
Rcd7 {[%clk 0:04:04.5]} 20. Bg4 {[%clk 0:03:04.8]} 20... Re7 {[%clk 0:03:46.9]}
21. Bxb8 {[%clk 0:02:50.7]} 21... Rxb8 {[%clk 0:03:38.5]} 22. Rfd1 {[%clk
0:02:49]} 22... g6 {[%clk 0:03:26.8]} 23. Nd6 {[%clk 0:02:29.8]} 23... f5 {[%clk
0:03:22.6]} 24. Be2 {[%clk 0:02:10.8]} 24... Rd7 {[%clk 0:03:10.5]} 25. Bc4+
{[%clk 0:02:03.3]} 25... Kg7 {[%clk 0:03:05]} 26. Nxb7 {[%clk 0:01:51.7]} 26...
Rbxb7 {[%clk 0:03:00.1]} 27. Rd4 {[%clk 0:01:43]} 27... Kf6 {[%clk 0:02:49.3]}
28. Rcd1 {[%clk 0:01:39.9]} 28... Rxd4 {[%clk 0:02:47.2]} 29. exd4 {[%clk
0:01:37.7]} 29... Ne6 {[%clk 0:02:35.4]} 30. d5 {[%clk 0:01:32.2]} 30... Nc5
{[%clk 0:02:26]} 31. d6 {[%clk 0:01:21.4]} 31... Nd7 {[%clk 0:02:20.8]} 32. Bb5
{[%clk 0:01:17.7]} 32... Ke5 {[%clk 0:02:19.7]} 33. Bd3 {[%clk 0:01:09.2]} 33...
exd3 {[%clk 0:02:17.6]} 34. Rxd3 {[%clk 0:01:07.7]} 34... Nc5 {[%clk 0:02:16.7]}
35. Rd1 {[%clk 0:01:01.1]} 35... Rd7 {[%clk 0:02:15.5]} 0-1

[Event "Live Chess"]
[Site "Chess.com"]
[Date "2024.06.02"]
[Round "-"]
[White "seasidecastle27"]
[Black "degringolade64"]
[Result "0-1"]
[WhiteElo "1940"]
[BlackElo "2130"]
[TimeControl "300"]
[EndTime "5:18:28 PDT"]
[Termination "degringolade64 won by resignation"]

1. d4 {[%clk 0:04:57.7]} 1... Nf6 {[%clk 0:04:58.3]} 2. Nf3 {[%clk 0:04:57]}
2... d5 {[%clk 0:04:56.5]} 3. Bf4 {[%clk 0:04:56.1]} 3... c5 {[%clk 0:04:54.8]}
4. e3 {[%clk 0:04:55.1]} 4... Nc6 {[%clk 0:04:52.1]} 5. Nbd2 {[%clk 0:04:52.5]}
5... Qb6 {[%clk 0:04:35]} 6. Bd3 {[%clk 0:04:43.5]} 6... c4 {[%clk 0:04:30.6]}
7. Be2 {[%clk 0:04:42]} 7... Qxb2 {[%clk 0:04:25.5]} 8. Rb1 {[%clk 0:04:33.9]}
8... Qxa2 {[%clk 0:04:22.9]} 9. Ra1 {[%clk 0:04:32.7]} 9... Qb2 {[%clk
0:04:21.4]} 10. Rb1 {[%clk 0:04:11.4]} 10... Qc3 {[%clk 0:04:17.7]} 11. O-O
{[%clk 0:04:05.3]} 11... e6 {[%clk 0:04:15.7]} 12. Ne5 {[%clk 0:03:38.5]} 12...
Be7 {[%clk 0:04:07.6]} 13. Bf3 {[%clk 0:03:32.3]} 13... O-O {[%clk 0:04:01.3]}
14. Rc1 {[%clk 0:03:07.4]} 14... Nxe5 {[%clk 0:03:51.8]} 15. dxe5 {[%clk
0:03:03.6]} 15... Nd7 {[%clk 0:03:49.9]} 16. Nb1 {[%clk 0:03:00.9]} 16... Qa5
{[%clk 0:03:40.2]} 17. e4 {[%clk 0:02:59.2]} 17... dxe4 {[%clk 0:03:34.2]} 18.
Bxe4 {[%clk 0:02:56.5]} 18... Nxe5 {[%clk 0:03:29.5]} 19. Qh5 {[%clk 0:02:41.1]}
19... f5 {[%clk 0:03:19.1]} 20. Bd2 {[%clk 0:02:26.3]} 20... Qc7 {[%clk
0:03:08.4]} 21. Bc3 {[%clk 0:02:20.1]} 21... Bf6 {[%clk 0:03:04.8]} 22. f4
{[%clk 0:02:14.5]} 22... Ng4 {[%clk 0:02:55]} 23. Bf3 {[%clk 0:01:59]} 23...
Qc5+ {[%clk 0:02:49]} 24. Kh1 {[%clk 0:01:56.1]} 24... Nf2+ {[%clk 0:02:48]} 25.
Rxf2 {[%clk 0:01:54.3]} 25... Qxf2 {[%clk 0:02:47.9]} 0-1

[Event "Live Chess"]
[Site "Chess.com"]
[Date "2024.06.02"]
[Round "-"]
[White "WilliamofOrange16th"]
[Black "NeilDruggan73"]
[Result "1-0"]
[WhiteElo "2005"]
[BlackElo "1711"]
[TimeControl "300"]
[EndTime "5:18:34 PDT"]
[Termination "WilliamofOrange16th won on time"]

1. e4 {[%clk 0:04:58.4]} 1... d6 {[%clk 0:04:58.3]} 2. d4 {[%clk 0:04:56.5]}
2... Nf6 {[%clk 0:04:57.6]} 3. Nc3 {[%clk 0:04:55.9]} 3... g6 {[%clk 0:04:56.3]}
4. Be2 {[%clk 0:04:55.3]} 4... Bg7 {[%clk 0:04:55.1]} 5. h4 {[%clk 0:04:55]}
5... h5 {[%clk 0:04:53]} 6. Nf3 {[%clk 0:04:52.6]} 6... c6 {[%clk 0:04:51.1]} 7.
Ng5 {[%clk 0:04:52.2]} 7... b5 {[%clk 0:04:45.3]} 8. a3 {[%clk 0:04:49.5]} 8...
a5 {[%clk 0:04:42.3]} 9. f3 {[%clk 0:04:48.7]} 9... Nbd7 {[%clk 0:04:39.4]} 10.
Be3 {[%clk 0:04:45.6]} 10... Nb6 {[%clk 0:04:37.3]} 11. b3 {[%clk 0:04:44.2]}
11... a4 {[%clk 0:04:34.3]} 12. Qd2 {[%clk 0:04:40.1]} 12... Qc7 {[%clk
0:04:17.1]} 13. O-O {[%clk 0:04:36.4]} 13... O-O {[%clk 0:04:13.3]} 14. Bf4
{[%clk 0:04:21.6]} 14... e5 {[%clk 0:04:10]} 15. dxe5 {[%clk 0:04:15.4]} 15...
dxe5 {[%clk 0:04:07.9]} 16. Be3 {[%clk 0:04:15.3]} 16... Rd8 {[%clk 0:04:03.9]}
17. Qe1 {[%clk 0:04:14.9]} 17... axb3 {[%clk 0:03:57.2]} 18. cxb3 {[%clk
0:04:14.8]} 18... Ne8 {[%clk 0:03:19.6]} 19. Qf2 {[%clk 0:03:59.2]} 19... f6
{[%clk 0:03:17.8]} 20. Bxb6 {[%clk 0:03:54.7]} 20... Qe7 {[%clk 0:03:13.9]} 21.
Bxd8 {[%clk 0:03:49.5]} 21... Qxd8 {[%clk 0:03:12.6]} 22. Nh3 {[%clk 0:03:48.7]}
22... Bxh3 {[%clk 0:03:11.1]} 23. gxh3 {[%clk 0:03:48.6]} 23... Kh7 {[%clk
0:03:03.2]} 24. Rfd1 {[%clk 0:03:47]} 24... Qc8 {[%clk 0:02:57.8]} 25. Kh2
{[%clk 0:03:43.2]} 25... Qe6 {[%clk 0:02:55.5]} 26. Qg2 {[%clk 0:03:23.4]} 26...
Bh6 {[%clk 0:02:53.5]} 27. Rg1 {[%clk 0:03:20.6]} 27... Qf7 {[%clk 0:02:48]} 28.
Bd3 {[%clk 0:03:01.8]} 28... Nc7 {[%clk 0:02:41.7]} 29. Ne2 {[%clk 0:02:59]}
29... Qxb3 {[%clk 0:02:37.7]} 30. Rgd1 {[%clk 0:02:54.4]} 30... Ne6 {[%clk
0:02:29.5]} 31. Rg1 {[%clk 0:02:43.7]} 31... Rg8 {[%clk 0:02:23.1]} 32. Rgd1
{[%clk 0:02:34.5]} 32... Bf4+ {[%clk 0:02:16.2]} 33. Kh1 {[%clk 0:02:31.8]}
33... g5 {[%clk 0:02:01.7]} 34. Qf2 {[%clk 0:02:23.6]} 34... Kh6 {[%clk
0:01:45.8]} 35. Qb6 {[%clk 0:02:15.1]} 35... Nd4 {[%clk 0:01:30.5]} 36. Nxd4
{[%clk 0:02:09.4]} 36... exd4 {[%clk 0:01:29.2]} 37. Qxc6 {[%clk 0:02:07.1]}
37... Rg6 {[%clk 0:01:09.2]} 38. Qxb5 {[%clk 0:02:02.5]} 38... Qe6 {[%clk
0:01:03.2]} 39. Qf5 {[%clk 0:02:00.3]} 39... Qxf5 {[%clk 0:01:00.3]} 40. exf5
{[%clk 0:02:00.2]} 40... Rg7 {[%clk 0:00:58.8]} 41. a4 {[%clk 0:01:59.9]} 41...
Rb7 {[%clk 0:00:54.3]} 42. a5 {[%clk 0:01:58.8]} 42... Rb2 {[%clk 0:00:52.8]}
43. a6 {[%clk 0:01:54.4]} 43... Rh2+ {[%clk 0:00:41.4]} 44. Kg1 {[%clk
0:01:53.1]} 44... Rxh3 {[%clk 0:00:37.6]} 45. a7 {[%clk 0:01:51.6]} 45... gxh4
{[%clk 0:00:29.4]} 46. a8=Q {[%clk 0:01:33.7]} 46... Be3+ {[%clk 0:00:28.2]} 47.
Kf1 {[%clk 0:01:21.6]} 47... Rg3 {[%clk 0:00:08.4]} 48. Qf8+ {[%clk 0:01:18.4]}
48... Kg5 {[%clk 0:00:06.9]} 49. Ra7 {[%clk 0:01:11.9]} 49... Rg1+ {[%clk
0:00:04.7]} 50. Ke2 {[%clk 0:01:11]} 50... Rg2+ {[%clk 0:00:02.9]} 51. Ke1
{[%clk 0:01:10.6]} 1-0

[Event "Live Chess"]
[Site "Chess.com"]
[Date "2024.06.02"]
[Round "-"]
[White "Pandreq"]
[Black "IgorSchukin"]
[Result "0-1"]
[WhiteElo "1231"]
[BlackElo "1772"]
[TimeControl "300"]
[EndTime "5:19:15 PDT"]
[Termination "IgorSchukin won by checkmate"]

1. d4 {[%clk 0:04:59.6]} 1... d5 {[%clk 0:04:58.6]} 2. c4 {[%clk 0:04:58.6]}
2... e5 {[%clk 0:04:57]} 3. cxd5 {[%clk 0:04:57.4]} 3... Qxd5 {[%clk 0:04:55.5]}
4. Nf3 {[%clk 0:04:55.6]} 4... e4 {[%clk 0:04:53.9]} 5. Nc3 {[%clk 0:04:55.1]}
5... Bb4 {[%clk 0:04:52.5]} 6. Ne5 {[%clk 0:04:50.9]} 6... Nf6 {[%clk
0:04:47.1]} 7. a3 {[%clk 0:04:49]} 7... Bxc3+ {[%clk 0:04:44.6]} 8. bxc3 {[%clk
0:04:48.1]} 8... O-O {[%clk 0:04:41.2]} 9. e3 {[%clk 0:04:45.8]} 9... Nbd7
{[%clk 0:04:36.5]} 10. Nxd7 {[%clk 0:04:44.2]} 10... Bxd7 {[%clk 0:04:34.5]} 11.
c4 {[%clk 0:04:43.6]} 11... Qg5 {[%clk 0:04:31.8]} 12. Rb1 {[%clk 0:04:35.9]}
12... b6 {[%clk 0:04:30.3]} 13. Bb2 {[%clk 0:04:28.5]} 13... Rad8 {[%clk
0:04:28.1]} 14. g3 {[%clk 0:04:19.8]} 14... h5 {[%clk 0:04:22.3]} 15. Bg2 {[%clk
0:04:15.4]} 15... h4 {[%clk 0:04:20.6]} 16. O-O {[%clk 0:04:14.5]} 16... Bg4
{[%clk 0:04:08.3]} 17. Qc2 {[%clk 0:04:08.7]} 17... Bf3 {[%clk 0:04:04.6]} 18.
Bh3 {[%clk 0:03:56.3]} 18... Ng4 {[%clk 0:03:55.6]} 19. Bc1 {[%clk 0:03:45.5]}
19... g6 {[%clk 0:03:46.2]} 20. Bg2 {[%clk 0:03:33.1]} 20... Kg7 {[%clk
0:03:38.5]} 21. Qb2 {[%clk 0:03:23.9]} 21... Rh8 {[%clk 0:03:32.6]} 22. d5+
{[%clk 0:03:10.4]} 22... f6 {[%clk 0:03:31.2]} 23. Bd2 {[%clk 0:03:03]} 23...
Nxh2 {[%clk 0:03:09.9]} 24. Kxh2 {[%clk 0:02:47.3]} 24... hxg3+ {[%clk
0:03:08.5]} 25. Kg1 {[%clk 0:02:44.6]} 25... gxf2+ {[%clk 0:03:06.1]} 26. Rxf2
{[%clk 0:02:40.1]} 26... Qg3 {[%clk 0:02:37.4]} 27. Bc3 {[%clk 0:02:32.3]} 27...
Qh2+ {[%clk 0:02:30.2]} 28. Kf1 {[%clk 0:02:23.1]} 28... Qh1+ {[%clk 0:02:27.5]}
29. Bxh1 {[%clk 0:02:02.2]} 29... Rxh1# {[%clk 0:02:24.7]} 0-1

[Event "Live Chess"]
[Site "Chess.com"]
[Date "2024.06.02"]
[Round "-"]
[White "Tatarinov_Maxim"]
[Black "Mikhail_Golubev"]
[Result "1-0"]
[WhiteElo "2299"]
[BlackElo "2484"]
[TimeControl "300"]
[EndTime "5:19:24 PDT"]
[Termination "Tatarinov_Maxim won by resignation"]

1. Nf3 {[%clk 0:04:50.1]} 1... d6 {[%clk 0:04:56.2]} 2. g3 {[%clk 0:04:48.9]}
2... g6 {[%clk 0:04:54.7]} 3. Bg2 {[%clk 0:04:48.2]} 3... Bg7 {[%clk 0:04:53.7]}
4. O-O {[%clk 0:04:47.6]} 4... e5 {[%clk 0:04:52.7]} 5. c4 {[%clk 0:04:47]} 5...
Nc6 {[%clk 0:04:49.8]} 6. Nc3 {[%clk 0:04:45.7]} 6... f5 {[%clk 0:04:48.3]} 7.
d3 {[%clk 0:04:44.7]} 7... h6 {[%clk 0:04:46.5]} 8. Nd2 {[%clk 0:04:39.8]} 8...
Nf6 {[%clk 0:04:44.2]} 9. Rb1 {[%clk 0:04:38.6]} 9... a5 {[%clk 0:04:42]} 10. a3
{[%clk 0:04:36.6]} 10... O-O {[%clk 0:04:40.7]} 11. b4 {[%clk 0:04:35.3]} 11...
axb4 {[%clk 0:04:38.5]} 12. axb4 {[%clk 0:04:35.2]} 12... g5 {[%clk 0:04:36.1]}
13. b5 {[%clk 0:04:34]} 13... Ne7 {[%clk 0:04:35]} 14. Nb3 {[%clk 0:04:18.4]}
14... f4 {[%clk 0:04:24.3]} 15. Bd2 {[%clk 0:04:12.6]} 15... h5 {[%clk
0:04:16.8]} 16. Ra1 {[%clk 0:04:11]} 16... Rb8 {[%clk 0:04:14.2]} 17. Ra7 {[%clk
0:04:05.5]} 17... h4 {[%clk 0:04:01.1]} 18. Qc2 {[%clk 0:03:40.6]} 18... Nf5
{[%clk 0:03:52.7]} 19. Nd5 {[%clk 0:03:34.3]} 19... hxg3 {[%clk 0:03:38.9]} 20.
fxg3 {[%clk 0:03:28.2]} 20... c6 {[%clk 0:03:30.1]} 21. bxc6 {[%clk 0:03:07.2]}
21... Qb6+ {[%clk 0:03:23.2]} 22. Nxb6 {[%clk 0:03:05]} 1-0